{"text_format":"1","workbook":"xlsx","n_sheets":8,"sheets":["Intro","RR1","Imp Par","RR2","Hold i alt","Slutspil","Par","Grand prix"],"not_rendered":{"charts":0,"images":0,"macros":0,"external_links":0,"defined_names":0,"comments":0,"pivot_tables":0},"unopened":[],"bounds":{"document_bytes":16777216,"sheet_cells":100000,"rows_first":2000,"rows_last":500,"rows_between":2000,"halvings":0,"cell_chars":16384,"cell_head_chars":4096},"cells_cut":0,"cells_raw":0,"read":"whole","date_system":"1900"}

{"sheet":"Intro","index":0,"n_rows":45,"n_cols":24,"rows_kept":45,"cut":false,"hidden":false,"merged":[[0,0,0,24]]}
[" Multi, intro hold"]
[]
[null,null,null,null,1,2,3,4,5,6,7,8,9,10,11,12,13,14,15,16,null,"Total",null,"Placering"]
[]
["Henrik Caspersen - Niels Krøjgaard",null,null,null,14.45,4.5599999999999996,12.66,9.25,19.34,16.8,8.06,15.34,7.69,17.55,15.94,13.09,null,null,null,null,null,{"$f":"AVERAGE(E5:T5)","v":12.894166666666669},null,1]
["H K Sørensen - Niels Henriksen",null,null,null,13.08,5.78,12.76,13.74,9.06,12.57,4.75,9.41,13.05,12.09,14.95,9.48,null,null,null,null,null,{"$f":"AVERAGE(E6:T6)","v":10.893333333333333},null,3]
[]
["Morten Bilde - Søren Cilleborg Bilde",null,null,null,10.41,10.8,7.34,6.26,10.91,12.97,11.68,8.01,8.15,13.31,11.11,12.49,null,null,null,null,null,{"$f":"AVERAGE(E8:T8)","v":10.286666666666667},null,7]
["Ricardo Mirasola - Jan Kølbæk",null,null,null,14.07,4.78,7.24,10.75,3.64,13.34,3.67,9.9700000000000006,14.15,12.39,9.8800000000000008,9.5299999999999994,null,null,null,null,null,{"$f":"AVERAGE(E9:T9)","v":9.4508333333333336},null,11]
[]
["Jørgen Cilleborg Hansen - Steen Schou",null,null,null,11.42,10.57,13.91,16.8,0.66,7.43,16.329999999999998,11.99,6.35,8.7799999999999994,7.63,2.96,null,null,null,null,null,{"$f":"AVERAGE(E11:T11)","v":9.5691666666666659},null,10]
["Asger Bruhn - Benny Marquart",null,null,null,2.0699999999999998,12.63,8.2100000000000009,3.61,10.94,3.2,8.32,10.029999999999999,17.54,14.22,15.53,14.29,null,null,null,null,null,{"$f":"AVERAGE(E12:T12)","v":10.049166666666666},null,8]
[]
["Marlene Henneberg - J.O Henneberg",null,null,null,13.31,9.2100000000000009,12.62,8.18,10.74,6.22,15.25,4.66,5.85,6.69,12.37,5.71,null,null,null,null,null,{"$f":"AVERAGE(E14:T14)","v":9.2341666666666651},null,13]
["Nikolaj Krefeld Hammelev - Lars Peter Damgaard",null,null,null,6.25,6.47,14.97,17.75,8.52,11.5,11.94,10.59,11.85,7.61,4.47,17.04,null,null,null,null,null,{"$f":"AVERAGE(E15:T15)","v":10.746666666666664},null,4]
[]
["Martin Klausen - Palle Jensen",null,null,null,6.69,13.53,7.28,7.69,11.61,5.72,5.04,3.02,6.95,2.4500000000000002,10.119999999999999,7.51,null,null,null,null,null,{"$f":"AVERAGE(E17:T17)","v":7.3008333333333342},null,16]
["Emil Jepsen - Peter Jepsen",null,null,null,13.75,10.79,10.73,6.82,6.38,14.86,9.39,14.94,12.31,7.91,8.89,10.47,null,null,null,null,null,{"$f":"AVERAGE(E18:T18)","v":10.603333333333333},null,6]
[]
["Jens Kofoed - Emil Buus Thomsen",null,null,null,17.93,9.43,7.38,2.25,8.39,5.14,13.93,7.48,7.81,5.64,4.0599999999999996,10.52,null,null,null,null,null,{"$f":"AVERAGE(E20:T20)","v":8.33},null,15]
["Kresten Roland Johansen - Troels Buus Thomsen",null,null,null,8.58,7.37,5.03,11.82,13.62,14.28,14.28,3.46,7.99,6.58,5.05,6.91,null,null,null,null,null,{"$f":"AVERAGE(E21:T21)","v":8.7474999999999969},null,14]
[]
["Camilla Bo Krefeld - Johan Hammelev",null,null,null,9.59,15.22,6.09,16.39,11.48,13.78,10.61,16.98,12.19,13.42,6.1,14.83,null,null,null,null,null,{"$f":"AVERAGE(E23:T23)","v":12.223333333333336},null,2]
["Lida Hulgaard - Øjvind Hulgaard",null,null,null,5.93,9.1999999999999993,11.79,3.2,9.26,8.5,14.96,5.0599999999999996,12.01,14.36,11.79,10.050000000000001,null,null,null,null,null,{"$f":"AVERAGE(E24:T24)","v":9.6758333333333333},null,9]
[]
["Jesper Bechsgaard - Anders Handberg Sørensen",null,null,null,5.55,14.22,12.72,13.18,9.09,6.66,5.72,12.52,13.65,5.78,8.2100000000000009,5.17,null,null,null,null,null,{"$f":"AVERAGE(E26:T26)","v":9.3725000000000005},null,12]
["Jan Pedersen - Nils Mønsted",null,null,null,6.92,15.44,9.27,12.31,16.36,7.03,6.07,16.54,2.46,11.22,13.9,9.9499999999999993,null,null,null,null,null,{"$f":"AVERAGE(E27:T27)","v":10.6225},null,5]
[]
[]
[]
[]
[]
[]
[]
[]
[]
[]
[]
[]
[]
[]
[]
[]
["Øjvind Hulgaard - Jesper Gad"]
["Niels Krøjgaard - Henrik Caspersen - H C Graversen"]

{"sheet":"RR1","index":1,"n_rows":27,"n_cols":21,"rows_kept":27,"cut":false,"hidden":false,"merged":[[0,0,0,21]]}
["Multi, RR1"]
[]
[null,null,null,null,1,2,3,4,5,6,7,8,9,10,11,12,13,14,null,"Total","Placering"]
[]
["Jan Pedersen - Nils Mønsted",null,null,null,null,null,null,null,null,null,null,null,null,null,null,null,null,null,null,{"$f":"AVERAGE(E5:R5)","v":{"$error":"#DIV/0!"}}]
["Camilla Bo Krefeld - Johan Hammelev",null,null,null,null,null,null,null,null,null,null,null,null,null,null,null,null,null,null,{"$f":"AVERAGE(E6:R6)","v":{"$error":"#DIV/0!"}}]
[]
["Ricardo Mirasola - Jan Kølbæk",null,null,null,null,null,null,null,null,null,null,null,null,null,null,null,null,null,null,{"$f":"AVERAGE(E8:R8)","v":{"$error":"#DIV/0!"}}]
["Marlene Henneberg - J.O Henneberg",null,null,null,null,null,null,null,null,null,null,null,null,null,null,null,null,null,null,{"$f":"AVERAGE(E9:R9)","v":{"$error":"#DIV/0!"}}]
[]
["Lida Hulgaard - Øjvind Hulgaard",null,null,null,null,null,null,null,null,null,null,null,null,null,null,null,null,null,null,{"$f":"AVERAGE(E11:R11)","v":{"$error":"#DIV/0!"}}]
["Jesper Bechsgaard - Anders Handberg Sørensen",null,null,null,null,null,null,null,null,null,null,null,null,null,null,null,null,null,null,{"$f":"AVERAGE(E12:R12)","v":{"$error":"#DIV/0!"}}]
[]
["Morten Bilde - Søren Cilleborg Bilde",null,null,null,null,null,null,null,null,null,null,null,null,null,null,null,null,null,null,{"$f":"AVERAGE(E14:R14)","v":{"$error":"#DIV/0!"}}]
["Emil Jepsen - Peter Jepsen",null,null,null,null,null,null,null,null,null,null,null,null,null,null,null,null,null,null,{"$f":"AVERAGE(E15:R15)","v":{"$error":"#DIV/0!"}}]
[]
["Jørgen Cilleborg Hansen - Steen Schou",null,null,null,null,null,null,null,null,null,null,null,null,null,null,null,null,null,null,{"$f":"AVERAGE(E17:R17)","v":{"$error":"#DIV/0!"}}]
["H K Sørensen - Niels Henriksen",null,null,null,null,null,null,null,null,null,null,null,null,null,null,null,null,null,null,{"$f":"AVERAGE(E18:R18)","v":{"$error":"#DIV/0!"}}]
[]
["Asger Bruhn - Per Ebdrup",null,null,null,null,null,null,null,null,null,null,null,null,null,null,null,null,null,null,{"$f":"AVERAGE(E20:R20)","v":{"$error":"#DIV/0!"}}]
["Martin Klausen - Palle Jensen",null,null,null,null,null,null,null,null,null,null,null,null,null,null,null,null,null,null,{"$f":"AVERAGE(E21:R21)","v":{"$error":"#DIV/0!"}}]
[]
["Nikolaj Krefeld Hammelev - Lars Peter Damgaard",null,null,null,null,null,null,null,null,null,null,null,null,null,null,null,null,null,null,{"$f":"AVERAGE(E23:R23)","v":{"$error":"#DIV/0!"}}]
["Kresten Roland Johansen - Troels Buus Thomsen",null,null,null,null,null,null,null,null,null,null,null,null,null,null,null,null,null,null,{"$f":"AVERAGE(E24:R24)","v":{"$error":"#DIV/0!"}}]
[]
["Henrik Caspersen - Niels Krøjgaard",null,null,null,null,null,null,null,null,null,null,null,null,null,null,null,null,null,null,{"$f":"AVERAGE(E26:R26)","v":{"$error":"#DIV/0!"}}]
["Jens Kofoed - Emil Buus Thomsen",null,null,null,null,null,null,null,null,null,null,null,null,null,null,null,null,null,null,{"$f":"AVERAGE(E27:R27)","v":{"$error":"#DIV/0!"}}]

{"sheet":"Imp Par","index":2,"n_rows":21,"n_cols":9,"rows_kept":21,"cut":false,"hidden":false,"merged":[[0,0,0,8]]}
["IMP Par"]
[]
[]
[null,1,2,3,4,5,null,null,"Placering"]
["H K Sørensen - Niels Henriksen",null,null,null,null,null,null,{"$f":"SUM(B5:F5)","v":0},1]
["Henrik Caspersen - Niels Krøjgaard",null,null,null,null,null,null,0,2]
["Nikolaj Krefeld Hammelev - Lars Peter Damgaard",null,null,null,null,null,null,0,3]
["Jens Kofoed - Emil Buus Thomsen",null,null,null,null,null,null,0,4]
["Emil Jepsen - Peter Jepsen",null,null,null,null,null,null,0,5]
["Camilla Bo Krefeld - Johan Hammelev",null,null,null,null,null,null,0,6]
["Ricardo Mirasola - Jan Kølbæk",null,null,null,null,null,null,0,7]
["Jørgen Cilleborg Hansen - Steen Schou",null,null,null,null,null,null,0,8]
["Jan Pedersen - Nils Mønsted",null,null,null,null,null,null,0,9]
["Marlene Henneberg - J.O Henneberg",null,null,null,null,null,null,0,10]
["Kresten Roland Johansen - Troels Buus Thomsen",null,null,null,null,null,null,0,11]
["Morten Bilde - Søren Cilleborg Bilde",null,null,null,null,null,null,0,12]
["Lida Hulgaard - Øjvind Hulgaard",null,null,null,null,null,null,0,13]
["Jesper Bechsgaard - Anders Handberg Sørensen",null,null,null,null,null,null,0,14]
["Asger Bruhn - Per Ebdrup",null,null,null,null,null,null,0,15]
["Martin Klausen - Palle Jensen",null,null,null,null,null,null,0,16]
[null,{"$f":"SUM(B5:B20)","v":0},{"$f":"SUM(C5:C20)","v":0},0,0,0,null,{"$f":"SUM(H5:H20)","v":0}]

{"sheet":"RR2","index":3,"n_rows":27,"n_cols":21,"rows_kept":27,"cut":false,"hidden":false,"merged":[[0,0,0,21]]}
[" Multi, RR2"]
[]
[null,null,null,null,1,2,3,4,5,6,7,8,9,10,11,12,13,14,null,"Total","Placering"]
[]
["Jan Pedersen - Nils Mønsted",null,null,null,null,null,null,null,null,null,null,null,null,null,null,null,null,null,null,{"$f":"AVERAGE(E5:R5)","v":{"$error":"#DIV/0!"}}]
["Camilla Bo Krefeld - Johan Hammelev",null,null,null,null,null,null,null,null,null,null,null,null,null,null,null,null,null,null,{"$f":"AVERAGE(E6:R6)","v":{"$error":"#DIV/0!"}}]
[]
["Ricardo Mirasola - Jan Kølbæk",null,null,null,null,null,null,null,null,null,null,null,null,null,null,null,null,null,null,{"$f":"AVERAGE(E8:R8)","v":{"$error":"#DIV/0!"}}]
["Marlene Henneberg - J.O Henneberg",null,null,null,null,null,null,null,null,null,null,null,null,null,null,null,null,null,null,{"$f":"AVERAGE(E9:R9)","v":{"$error":"#DIV/0!"}}]
[]
["Lida Hulgaard - Øjvind Hulgaard",null,null,null,null,null,null,null,null,null,null,null,null,null,null,null,null,null,null,{"$f":"AVERAGE(E11:R11)","v":{"$error":"#DIV/0!"}}]
["Jesper Bechsgaard - Anders Handberg Sørensen",null,null,null,null,null,null,null,null,null,null,null,null,null,null,null,null,null,null,{"$f":"AVERAGE(E12:R12)","v":{"$error":"#DIV/0!"}}]
[]
["Morten Bilde - Søren Cilleborg Bilde",null,null,null,null,null,null,null,null,null,null,null,null,null,null,null,null,null,null,{"$f":"AVERAGE(E14:R14)","v":{"$error":"#DIV/0!"}}]
["Emil Jepsen - Peter Jepsen",null,null,null,null,null,null,null,null,null,null,null,null,null,null,null,null,null,null,{"$f":"AVERAGE(E15:R15)","v":{"$error":"#DIV/0!"}}]
[]
["Jørgen Cilleborg Hansen - Steen Schou",null,null,null,null,null,null,null,null,null,null,null,null,null,null,null,null,null,null,{"$f":"AVERAGE(E17:R17)","v":{"$error":"#DIV/0!"}}]
["H K Sørensen - Niels Henriksen",null,null,null,null,null,null,null,null,null,null,null,null,null,null,null,null,null,null,{"$f":"AVERAGE(E18:R18)","v":{"$error":"#DIV/0!"}}]
[]
["Asger Bruhn - Per Ebdrup",null,null,null,null,null,null,null,null,null,null,null,null,null,null,null,null,null,null,{"$f":"AVERAGE(E20:R20)","v":{"$error":"#DIV/0!"}}]
["Martin Klausen - Palle Jensen",null,null,null,null,null,null,null,null,null,null,null,null,null,null,null,null,null,null,{"$f":"AVERAGE(E21:R21)","v":{"$error":"#DIV/0!"}}]
[]
["Nikolaj Krefeld Hammelev - Lars Peter Damgaard",null,null,null,null,null,null,null,null,null,null,null,null,null,null,null,null,null,null,{"$f":"AVERAGE(E23:R23)","v":{"$error":"#DIV/0!"}}]
["Kresten Roland Johansen - Troels Buus Thomsen",null,null,null,null,null,null,null,null,null,null,null,null,null,null,null,null,null,null,{"$f":"AVERAGE(E24:R24)","v":{"$error":"#DIV/0!"}}]
[]
["Henrik Caspersen - Niels Krøjgaard",null,null,null,null,null,null,null,null,null,null,null,null,null,null,null,null,null,null,{"$f":"AVERAGE(E26:R26)","v":{"$error":"#DIV/0!"}}]
["Jens Kofoed - Emil Buus Thomsen",null,null,null,null,null,null,null,null,null,null,null,null,null,null,null,null,null,null,{"$f":"AVERAGE(E27:R27)","v":{"$error":"#DIV/0!"}}]

{"sheet":"Hold i alt","index":4,"n_rows":14,"n_cols":5,"rows_kept":14,"cut":false,"hidden":false,"merged":[[0,0,0,5]]}
["Klub 32 - Hold 2023/24"]
[]
[]
[]
[null,"RR1","RR2","Total","Placering"]
[null,null,null,{"$f":"SUM(B6:C6)","v":0},1]
[null,null,null,0,2]
[null,null,null,0,3]
[null,null,null,0,4]
[null,null,null,0,5]
[null,null,null,0,6]
[null,null,null,0,7]
[null,null,null,0,8]
[null," "]

{"sheet":"Slutspil","index":5,"n_rows":28,"n_cols":15,"rows_kept":28,"cut":false,"hidden":false,"merged":[[0,0,0,14],[1,3,1,10]]}
["SLUTSPIL"]
[]
[]
[null,null,null,null,1,2,3,4,5,6,7,8,null,"Total","Placering"]
[]
["Jan Pedersen - Nils Mønsted",null,null,null,null,null,null,null,null,null,null,null,null,{"$f":"AVERAGE(E6:L6)","v":{"$error":"#DIV/0!"}}]
["Camilla Bo Krefeld - Johan Hammelev",null,null,null,null,null,null,null,null,null,null,null,null,{"$f":"AVERAGE(E7:L7)","v":{"$error":"#DIV/0!"}}]
[]
["Ricardo Mirasola - Jan Kølbæk",null,null,null,null,null,null,null,null,null,null,null,null,{"$f":"AVERAGE(E9:L9)","v":{"$error":"#DIV/0!"}}]
["Marlene Henneberg - J.O Henneberg",null,null,null,null,null,null,null,null,null,null,null,null,{"$error":"#DIV/0!"}]
[]
["Lida Hulgaard - Øjvind Hulgaard",null,null,null,null,null,null,null,null,null,null,null,null,{"$f":"AVERAGE(E12:L12)","v":{"$error":"#DIV/0!"}}]
["Jesper Bechsgaard - Anders Handberg Sørensen",null,null,null,null,null,null,null,null,null,null,null,null,{"$error":"#DIV/0!"}]
[]
["Morten Bilde - Søren Cilleborg Bilde",null,null,null,null,null,null,null,null,null,null,null,null,{"$f":"AVERAGE(E15:L15)","v":{"$error":"#DIV/0!"}}]
["Emil Jepsen - Peter Jepsen",null,null,null,null,null,null,null,null,null,null,null,null,{"$error":"#DIV/0!"}]
[]
["Jørgen Cilleborg Hansen - Steen Schou",null,null,null,null,null,null,null,null,null,null,null,null,{"$f":"AVERAGE(E18:L18)","v":{"$error":"#DIV/0!"}}]
["H K Sørensen - Niels Henriksen",null,null,null,null,null,null,null,null,null,null,null,null,{"$error":"#DIV/0!"}]
[]
["Asger Bruhn - Per Ebdrup",null,null,null,null,null,null,null,null,null,null,null,null,{"$f":"AVERAGE(E21:L21)","v":{"$error":"#DIV/0!"}}]
["Martin Klausen - Palle Jensen",null,null,null,null,null,null,null,null,null,null,null,null,{"$error":"#DIV/0!"}]
[]
["Nikolaj Krefeld Hammelev - Lars Peter Damgaard",null,null,null,null,null,null,null,null,null,null,null,null,{"$f":"AVERAGE(E24:L24)","v":{"$error":"#DIV/0!"}}]
["Kresten Roland Johansen - Troels Buus Thomsen",null,null,null,null,null,null,null,null,null,null,null,null,{"$error":"#DIV/0!"}]
[]
["Henrik Caspersen - Niels Krøjgaard",null,null,null,null,null,null,null,null,null,null,null,null,{"$f":"AVERAGE(E27:L27)","v":{"$error":"#DIV/0!"}}]
["Jens Kofoed - Emil Buus Thomsen",null,null,null,null,null,null,null,null,null,null,null,null,{"$error":"#DIV/0!"}]

{"sheet":"Par","index":6,"n_rows":22,"n_cols":9,"rows_kept":22,"cut":false,"hidden":false,"merged":[[0,0,0,6]]}
["Par"]
[]
[null,"1.aften","2.aften","3.aften","4.aften",null,"Sum",null,"Placering"]
[]
["Camilla Bo Krefeld - Johan Hammelev",45.9,42,31,null,null,{"$f":"SUM(B5:F5)","v":118.9},null,1]
["Henrik Caspersen - Niels Krøjgaard",36.4,19,34,null,null,89.4,null,2]
["H K Sørensen - Niels Henriksen",-2.9,53,12,null,null,62.1,null,3]
["Nikolaj Krefeld Hammelev - Lars Peter Damgaard",30.3,25,-16,null,null,39.299999999999997,null,4]
["Jørgen Cilleborg Hansen - Steen Schou",3.1,13,22,null,null,38.1,null,5]
["Morten Bilde - Søren Cilleborg Bilde",-4.5999999999999996,-14,49,null,null,30.4,null,6]
["Jens Kofoed - Emil Buus Thomsen",5.5,25,-22,null,null,8.5,null,7]
["Emil Jepsen - Peter Jepsen",-2.6,32,-27,null,null,2.3999999999999986,null,8]
["Marlene Henneberg - J.O Henneberg",-8.6999999999999993,-3,12,null,null,0.30000000000000071,null,9]
["Jesper Bechsgaard - Anders Handberg Sørensen",5.4,-10,-4,null,null,-8.6,null,10]
["Jan Pedersen - Nils Mønsted",-13.1,0,3,null,null,-10.1,null,11]
["Ricardo Mirasola - Jan Kølbæk",1.4,-26,1,null,null,-23.6,null,12]
["Lida Hulgaard - Øjvind Hulgaard",19.3,-47,-5,null,null,-32.700000000000003,null,13]
["Kresten Roland Johansen - Troels Buus Thomsen",2.9,-21,-30,null,null,-48.1,null,14]
["Asger Bruhn - Per Ebdrup",-46.3,-45,-30,null,null,-121.3,null,15]
["Martin Klausen - Palle Jensen",-70.599999999999994,-43,-30,null,null,-143.6,null,16]
[]
[null,{"$f":"SUM(B5:B21)","v":1.4000000000000199},{"$f":"SUM(C5:C21)","v":0},{"$f":"SUM(D5:D21)","v":0},0,null,1.3999999999999488]

{"sheet":"Grand prix","index":7,"n_rows":20,"n_cols":18,"rows_kept":20,"cut":false,"hidden":false,"merged":[[0,0,0,15]]}
["Grand prix klub 32 (2023-2024)"]
[]
[null,null,null,null,null,"Intro hold","RR 1","IMP1","RR2","Slutspil","Par",null,"Total",null,"Placering"]
[]
["Henrik Caspersen - Niels Krøjgaard",null,null,null,null,{"$f":"Intro!X5*4","v":4},null,null,null,null,null,null,{"$f":"SUM(F5:L5)","v":4},null,1]
["Camilla Bo Krefeld - Johan Hammelev",null,null,null,null,{"$f":"Intro!X23*4","v":8},null,null,null,null,null,null,{"$f":"SUM(F6:L6)","v":8},null,"2"]
["H K Sørensen - Niels Henriksen",null,null,null,null,{"$f":"Intro!X6*4","v":12},null,null,null,null,null,null,{"$f":"SUM(F7:L7)","v":12},null,3]
["Nikolaj Krefeld Hammelev - Lars Peter Damgaard",null,null,null,null,{"$f":"Intro!X15*4","v":16},null,null,null,null,null,null,{"$f":"SUM(F8:L8)","v":16},null,4]
["Jan Pedersen - Nils Mønsted",null,null,null,null,{"$f":"Intro!X27*4","v":20},null,null,null,null,null,null,{"$f":"SUM(F9:L9)","v":20},null,"5"]
["Emil Jepsen - Peter Jepsen",null,null,null,null,{"$f":"Intro!X18*4","v":24},null,null,null,null,null,null,{"$f":"SUM(F10:L10)","v":24},null,6]
["Morten Bilde - Søren Cilleborg Bilde",null,null,null,null,{"$f":"Intro!X8*4","v":28},null,null,null,null,null,null,{"$f":"SUM(F11:L11)","v":28},null,7]
["Asger Bruhn - Benny Marquart",null,null,null,null,{"$f":"Intro!X12*4","v":32},null,null,null,null,null,null,{"$f":"SUM(F12:L12)","v":32},null,"8"]
["Lida Hulgaard - Øjvind Hulgaard",null,null,null,null,{"$f":"Intro!X24*4","v":36},null,null,null,null,null,null,{"$f":"SUM(F13:L13)","v":36},null,"9"]
["Jørgen Cilleborg Hansen - Steen Schou",null,null,null,null,{"$f":"Intro!X11*4","v":40},null,null,null,null,null,null,{"$f":"SUM(F14:L14)","v":40},null,10,null,null,"  "]
["Ricardo Mirasola - Jan Kølbæk",null,null,null,null,{"$f":"Intro!X9*4","v":44},null,null,null,null,null,null,{"$f":"SUM(F15:L15)","v":44},null,11]
["Jesper Bechsgaard - Anders Handberg Sørensen",null,null,null,null,{"$f":"Intro!X26*4","v":48},null,null,null,null,null,null,{"$f":"SUM(F16:L16)","v":48},null,12]
["Marlene Henneberg - J.O Henneberg",null,null,null,null,{"$f":"Intro!X14*4","v":52},null,null,null,null,null,null,{"$f":"SUM(F17:L17)","v":52},null,13]
["Kresten Roland Johansen - Troels Buus Thomsen",null,null,null,null,{"$f":"Intro!X21*4","v":56},null,null,null,null,null,null,{"$f":"SUM(F18:L18)","v":56},null,14]
["Jens Kofoed - Emil Buus Thomasn",null,null,null,null,{"$f":"Intro!X20*4","v":60},null,null,null,null,null,null,{"$f":"SUM(F19:L19)","v":60},null,15]
["Martin Klausen - Palle Jensen",null,null,null,null,{"$f":"Intro!X17*4","v":64},null,null,null,null,null,null,{"$f":"SUM(F20:L20)","v":64},null,16]